Workbook

Sheet 1
B1: Addendum 9 - PRICE PROPOSAL - PAGE 1 of 5 Note: Addendum 9 builds upon previous Price Form Addenda and adds Multi-family Universal Service pricing to Page 2, separates Multi-family Subscription Service and Commercial Compaction Containers on Page 3, and adds Cart Service Pricing on Page 4.
B2: PROPOSER'S NAME:
B3: Residential Collection Service and Residential Recyclables Collection Service (Services for Residential Units defined as Single Family and any other residential building with less than five residential living units.)
B4: Please note the following: 1. Proposer must fill in all proposed pricing (yellow highlighted cells) to be considered responsive. All other cells are locked. 2. Monthly Service Rate shall be provided per unit for four (4) different service options under the Solid Waste Franchise Area (level of services in brown font) and Recycling Franchise Area (level of services in dark blue font). 3. Both Franchise Areas shall be awarded to one Proposer. 4. No pricing shall include disposal. 5. Billing under Service Options #1 and #3 (subscription based) shall be the responsibility of Proposer managed directly with Customer. All services except recyclables collection shall include Franchise Fee of 6 percent integrated into the monthly service rate. 6. Billing under Service Options #2 and #4 (universal based) shall be between SWDD and Proposer. All services except recyclables collection shall include 6 percent Franchise Fee integrated into the monthly service rate. 7. All unit prices must be rounded to the nearest cent. 8. Unit numbers provided are estimated and for evaluation purposes only. SWDD makes no guarantee on the number of units to be serviced. 9. Proposers are encouraged to thoroughly read the option and level of service as provided in RFP Section 1, Scope of Services and Attachment B Sample Agreement. 10. Where applicable, cubic yard has been abbreviated to cu yd.
B6: Residential Collection Service Service Option #1 (1-1-1-1) Subscription Service / Non-carted Yard Trash
B7: Line | C7: Type of Service | D7: Monthly Service Rate / Unit SW Franchise Area and Recycling Franchise Area (a) | E7: Estimated Units (b)
B8: 1 | C8: Solid Waste: 1x per week automated carted collection in Franchisee provided carts1 and 2 | E8: =48152+1725 -> 49,877
B9: =B8+1 -> 2 | C9: Single Family Recyclables: 1x per week single stream collection in Franchisee provided carts1 and 3 | E9: 70,450
B10: =B9+1 -> 3 | C10: Yard Trash: 1x per week 4 cu yd maximum containerized, bundled, or stacked at curb2 | E10: =48152+1725 -> 49,877
B11: =B10+1 -> 4 | C11: Bulk Trash: 1x per week collection2 | E11: 49,877
B12: =B11+1 -> 5 | C12: Total Monthly Fee per Unit (Sum of Lines 1-4) | D12: =SUM(D8:D11) -> $0.00
B13: =B12+1 -> 6 | C13: Estimated Annualized Cost for SO#1 [((Line 1a*1b)+(Line 2a*2b)+(Line 3a*3b)+(Line 4a*4b)) *12 months] | D13: =SUM((D8*E8)+(D9*E9)+(D10*E10)+(D11*E11))*12 -> $0.00
B14: Residential Collection Service Service Option #2 (1-1-1-1) Universal Service / Non-carted Yard Trash
B15: Line | C15: Type of Service | D15: SW Franchise Area and Recycling Franchise Area (a) | E15: Estimated Units (b)
B16: =B13+1 -> 7 | C16: Solid Waste: 1x per week automated carted collection in Franchisee provided carts1 and 2 | E16: =48152+1725 -> 49,877
B17: =B16+1 -> 8 | C17: Single Family Recyclables: 1x per week single stream collection in Franchisee provided carts1 and 3 | E17: 70,450
B18: =B17+1 -> 9 | C18: Yard Trash: 1x per week 4 cu yd maximum containerized, bundled, or stacked at curb2 | E18: =48152+1725 -> 49,877
B19: =B18+1 -> 10 | C19: Bulk Trash: 1x per week collection2 | E19: 49,877
B20: =B19+1 -> 11 | C20: Total Monthly Fee per Unit (Sum of Lines 7-10) | D20: =SUM(D16:D19) -> $0.00
B21: =B20+1 -> 12 | C21: Estimated Annualized Cost for SO#2 [((Line 7a*7b)+(Line 8a*8b)+(Line 9a*9b)+(Line 10a*10b)) *12 months] | D21: =SUM((D16*E16)+(D17*E17)+(D18*E18)+(D19*E19))*12 -> $0.00
B22: Residential Collection Service Service Option #3 (1-1-1-1) Subscription Service / Carted Yard Trash
B23: Line | C23: Type of Service | D23: SW Franchise Area and Recycling Franchise Area (a) | E23: Estimated Units (b)
B24: =B21+1 -> 13 | C24: Solid Waste: 1x per week automated carted collection in Franchisee provided carts1 and 2 | E24: =48152+1725 -> 49,877
B25: =B24+1 -> 14 | C25: Single Family Recyclables: 1x per week single stream collection in Franchisee provided carts1 and 3 | E25: 70,450
B26: =B25+1 -> 15 | C26: Yard Trash: 1x per week automated carted collection in Franchisee provided carts1 and 2 | E26: =48152+1725 -> 49,877
B27: =B26+1 -> 16 | C27: Bulk Trash: 1x per week collection2 | E27: 49,877
B28: =B27+1 -> 17 | C28: Total Monthly Fee per Unit (Sum of Lines 13-16) | D28: =SUM(D24:D27) -> $0.00
B29: =B28+1 -> 18 | C29: Estimated Annualized Cost for SO#3 [((Line 13a*13b)+(Line 14a*14b)+(Line 15a*15b)+(Line 16a*16b)) *12 months] | D29: =SUM((D24*E24)+(D25*E25)+(D26*E26)+(D27*E27))*12 -> $0.00
B30: Residential Collection Service Service Option #4 (1-1-1-1) Universal Service / Carted Yard Trash
B31: Line | C31: Type of Service | D31: SW Franchise Area and Recycling Franchise Area (a) | E31: Estimated Units (b)
B32: =B29+1 -> 19 | C32: Solid Waste: 1x per week automated carted collection in Franchisee provided carts1 and 2 | E32: =48152+1725 -> 49,877
B33: =B32+1 -> 20 | C33: Single Family Recyclables: 1x per week single stream collection in Franchisee provided carts1 and 3 | E33: 70,450
B34: 21 | C34: Yard Trash: 1x per week automated carted collection in Franchisee provided carts1 and 2 | E34: =48152+1725 -> 49,877
B35: 22 | C35: Bulk Trash: 1x per week collection2 | E35: 49,877
B36: 23 | C36: Total Monthly Fee per Unit (Sum of Lines 19-22) | D36: =SUM(D32:D35) -> $0.00
B37: 24 | C37: Estimated Annualized Cost for SO#4 [((Line 19a*19b)+(Line 20a*20b)+(Line 21a*21b)+(Line 22a*22b)) *12 months] | D37: =SUM((D32*E32)+(D33*E33)+(D34*E34)+(D35*E35))*12 -> $0.00
B38: 25 | C38: 1Franchisee responsible for cart maintenance and replacement or new carts.
B39: 26 | C39: 2Assumes 100% participation of residents.
B40: 27 | C40: 3Materials exempt from Franchise Fee. No Franchise Fee should be included in the proposed rate.

Sheet 2
B1: Addendum 9 - PRICE PROPOSAL - PAGE 2 of 5 Note: Addendum 9 builds upon previous Price Form Addenda and adds Multi-family Universal Service pricing to Page 2, separates Multi-family Subscription Service and Commercial Compaction Containers on Page 3, and adds Cart Service Pricing on Page 4.
B2: PROPOSER'S NAME:
B3: Residential Supplemental Collection Services (All Options) | F3: Government Buildings and Facilities Recycling
B4: Please note the following: 1. Proposer must fill in all proposed pricing (yellow highlighted cells) to be considered responsive. All other cells are locked. 2. Franchisee shall provide Residential Supplemental Collection Service as arranged between the Residential Customer and Franchisee as defined in RFP Section 1, Scope of Services and Attachment B Sample Agreement. 3. All unit prices must be rounded to the nearest cent. 4. Due to the unknown variable of estimated units serviced per month, each type of service has a general multiplier of one (1) utilized to calculate the estimated annualized cost. 5. Total Multi-family units in Recycling Franchise Area not currently known. Any information obtained during the solicitation period will be provided via an addendum. 6. Where applicable, cubic yard has been abbreviated to cu yd. 7. Pricing shall not include disposal or processing fees. Franchise Fees shall be included for all pricing, except where noted. | F4: The Franchisee shall provide a monthly rate per unit for each size of containers identified below. The franchisee shall be responsible for new carts, cart replacement, and cart maintenance. Please note, some locations have carts equipped with gravity locks. The Franchisee will be responsible for purchase and installation of future gravity locks as designated by SWDD Contract Manager or designee. Specialty Service shall include the emptying of containers at multiple locations at one single facility or building (See Sample Agreement Article 7.3.5.i). Specialty Service shall be a monthly rate added on to the corresponding container size monthly service rate per unit.
B5: Line | C5: Type of Service | F5: Size of Container(s) | G5: # of Containers/ Specialty Service (a) | H5: Monthly Service Rate / Unit (b)
C6: Residential Supplemental Collection Services and Multi-Family Recycling | D6: Monthly Service Rate / Unit (a) | F6: 64-gallon | G6: 300
B7: ='1'!B40+1 -> 28 | C7: MF Recyclables: Roll out container(s) and returning to original location - Fee per event | F7: 2 cu yd | G7: 2
B8: =B7+1 -> 29 | C8: Each additional Roll Cart - Fee per cart and distribution | F8: 4 cu yd | G8: 1
B9: 30 | C9: Collection of additional Roll Cart - Fee per event | F9: 6 cu yd | G9: 1
B10: 31 | C10: Cart cleaning services - Fee per event | F10: 8 cu yd | G10: 6
F11: Specialty Service | G11: 15
B12: =B10+1 -> 32 | C12: Improperly prepared Solid Waste - Fee per cu yd | F12: Estimated Annualized Cost for Government Building Recycling [(Summation of (a)*(b) for all items)*12] | H12: =((G6*H6)+(G7*H7)+(G8*H8)+(G9*H9)+(G10*H10)+(G11*H11))*12 -> $0.00
B13: 33 | C13: Improperly prepared Yard Trash - Fee per cu yd
B14: 34 | C14: Excessive Yard Waste - Fee per cu yd
B15: 35 | C15: Excessive Bulk Waste - Fee per cu yd
B16: 36 | C16: Estimated Annualized Cost for Residential Supplemental Collection Services [((Line 28a x 1)+(Line 29a x 1)+(Line 30a x 1)+(Line 31a x 1)+(Line 32a x 1)+(Line 33a x 1)+(Line 34a x 1)+(Line 35a x 1)) x 12 months] | D16: =SUM(D7:D10,D12:D15)*12 -> $0.00
B18: Multi-Family Universal Service (Options #2 and #4)
B19: Line | C19: Type of Service | D19: Monthly Service Rate / Unit (a)
B20: =B16+1 -> 37 | C20: Solid Waste: 1x per week collection in Franchisee or Customer provided containers
B21: =B20+1 -> 38 | C21: MF Recyclables: 1x per week single stream collection in Franchisee provided carts (price per unit)1 and 2 Note: Number of carts per complex determined in coordination with customer.
B22: =B21+1 -> 39 | C22: Monthly Rental and Maintenance Fee for Franchisee provided container (Sizes 2 - 8 cu yd)
B23: 40 | C23: Bulk Trash: 1x per week collection up to 4 items per residential unit
B24: 41 | C24: Total monthly fee per unit (Line 37a + Line 38a + Line 39a + Line 40a) | D24: =SUM(D20:D23) -> $0.00
B25: 42 | C25: Estimated Annualized Cost for Multi-Family Universal Service [(Line 37a x 1)+(Line 38a x 1)+(Line 39a x 1)+(40a x 1)) x 12 months] | D25: =D24*12 -> $0.00
C26: 1Franchisee responsible for cart maintenance and replacement or new carts.
C27: 2 Materials exempt from Franchise Fee. No Franchise Fee should be included in the proposed rate.

Sheet 3
B1: Addendum 9 - PRICE FORM - PAGE 3 of 5 Note: Addendum 9 builds upon previous Price Form Addenda and adds Multi-family Universal Service pricing to Page 2, separates Multi-family Subscription Service and Commercial Compaction Containers on Page 3, and adds Cart Service Pricing on Page 4.
B2: PROPOSER'S NAME:
B3: Multi-Family Subscription Service and Commercial Collection Service (Non-Compaction and Compaction Containers)
B4: Please note the following: 1. Proposer must fill in all proposed pricing (yellow highlighted cells) to be considered responsive. All other cells are locked. 2. Prices are for collection service only. No pricing shall include disposal. 3. Franchisee shall provide Multi-family and Commercial Collection Service as arranged between the Customer and Franchisee as defined in RFP Section 1, Scope of Services and Attachment B Sample Agreement. 4. Multi-family Subscription Service rates shall include Solid Waste and Bulk Trash Collection that meets specifications of the RFP Attachment B, Sample Agreement Article 6.2. To reduce Proposer confusion on unit counts, Multi-family Subscription Service estimated billing units shall use a placeholder of 1 for purposes of price proposal evaluation. 5. All unit prices must be rounded to the nearest cent. 6. Unit numbers provided are for evaluation purposes only and are based upon recent commercial billing reports. SWDD makes no guarantee as to the number of units to be serviced. 7. For proposal evaluations, all services have a minimum of one unit listed, even those not currently in use. 8. Pricing shall include Franchise Fees. However, pricing shall not include disposal fees.
B5: Multi-Family Subscription Service (Solid Waste Franchise Area) Service Options #1 and #3
B6: Solid Waste Franchise Area NON-COMPACTION CONTAINERS (Multi-Family Serviced as Commercial)
B7: Line | C7: Franchisee-Owned Containers | D7: 1x/week | F7: 2x/week | H7: 3x/week | J7: 4x/week | L7: 5x/week | N7: 6x/week | P7: Extra Scheduled Pickup | R7: On-Call Service Monthly Charge | T7: On-Call Service Pickup Charge | V7: =((axb)+(cxd)+(exf)+(gxh)+(ixj)+(kxl)+(mxn)+(oxp)+(qxr))x12
D8: (a) | E8: (b) | F8: (c) | G8: (d) | H8: (e) | I8: (f) | J8: (g) | K8: (h) | L8: (i) | M8: (j) | N8: (k) | O8: (l) | P8: (m) | Q8: (n) | R8: (o) | S8: (p) | T8: (q) | U8: (r)
D9: Monthly Rate | E9: Est. Billing Units/ Month | F9: Monthly Rate | G9: Est. Billing Units/ Month | H9: Monthly Rate | I9: Est. Billing Units/ Month | J9: Monthly Rate | K9: Est. Billing Units/ Month | L9: Monthly Rate | M9: Est. Billing Units/ Month | N9: Monthly Rate | O9: Est. Billing Units/ Month | P9: Rate per Pickup | Q9: Est. Pickups/ Month | R9: Monthly Rate | S9: Est. Billing Units/ Month | T9: Monthly Rate | U9: Est. Pickups/ Month | V9: Annual Price Proposal
B10: ='2'!B25+1 -> 43 | C10: 1 cubic yard | E10: 1 | G10: 1 | I10: 1 | K10: 1 | M10: 1 | O10: 1 | Q10: 1 | S10: 1 | U10: 1 | V10: =((D10*E10)+(F10*G10)+(H10*I10)+(J10*K10)+(L10*M10)+(N10*O10)+(P10*Q10)+(R10*S10)+(T10*U10))*12 -> $0.00
B11: =B10+1 -> 44 | C11: 2 cubic yard | E11: 1 | G11: 1 | I11: 1 | K11: 1 | M11: 1 | O11: 1 | Q11: 1 | S11: 1 | U11: 1 | V11: =((D11*E11)+(F11*G11)+(H11*I11)+(J11*K11)+(L11*M11)+(N11*O11)+(P11*Q11)+(R11*S11)+(T11*U11))*12 -> $0.00
B12: =B11+1 -> 45 | C12: 3 cubic yard | E12: 1 | G12: 1 | I12: 1 | K12: 1 | M12: 1 | O12: 1 | Q12: 1 | S12: 1 | U12: 1 | V12: $0.00
B13: 46 | C13: 4 cubic yard | E13: 1 | G13: 1 | I13: 1 | K13: 1 | M13: 1 | O13: 1 | Q13: 1 | S13: 1 | U13: 1 | V13: $0.00
B14: 47 | C14: 6 cubic yard | E14: 1 | G14: 1 | I14: 1 | K14: 1 | M14: 1 | O14: 1 | Q14: 1 | S14: 1 | U14: 1 | V14: $0.00
B15: 48 | C15: 8 cubic yard | E15: 1 | G15: 1 | I15: 1 | K15: 1 | M15: 1 | O15: 1 | Q15: 1 | S15: 1 | U15: 1 | V15: $0.00
C16: Customer-Owned Containers
B17: =B15+1 -> 49 | C17: 1 cubic yard | E17: 1 | G17: 1 | I17: 1 | K17: 1 | M17: 1 | O17: 1 | Q17: 1 | S17: 1 | U17: 1 | V17: =((D17*E17)+(F17*G17)+(H17*I17)+(J17*K17)+(L17*M17)+(N17*O17)+(P17*Q17)+(R17*S17)+(T17*U17))*12 -> $0.00
B18: =B17+1 -> 50 | C18: 2 cubic yard | E18: 1 | G18: 1 | I18: 1 | K18: 1 | M18: 1 | O18: 1 | Q18: 1 | S18: 1 | U18: 1 | V18: $0.00
B19: =B18+1 -> 51 | C19: 3 cubic yard | E19: 1 | G19: 1 | I19: 1 | K19: 1 | M19: 1 | O19: 1 | Q19: 1 | S19: 1 | U19: 1 | V19: $0.00
B20: 52 | C20: 4 cubic yard | E20: 1 | G20: 1 | I20: 1 | K20: 1 | M20: 1 | O20: 1 | Q20: 1 | S20: 1 | U20: 1 | V20: $0.00
B21: 53 | C21: 6 cubic yard | E21: 1 | G21: 1 | I21: 1 | K21: 1 | M21: 1 | O21: 1 | Q21: 1 | S21: 1 | U21: 1 | V21: $0.00
B22: 54 | C22: 8 cubic yard | E22: 1 | G22: 1 | I22: 1 | K22: 1 | M22: 1 | O22: 1 | Q22: 1 | S22: 1 | U22: 1 | V22: $0.00
B23: 55 | C23: Estimated Annualized Cost for Commercial Collection in Non-Compaction Containers [Sum of Lines 43-54] | V23: =SUM(V10:V22) -> $0.00
B25: Commercial Collection Services (Solid Waste Franchise Area)
B26: Solid Waste Franchise Area NON-COMPACTION CONTAINERS
B27: Line | C27: Franchisee-Owned Containers | D27: 1x/week | F27: 2x/week | H27: 3x/week | J27: 4x/week | L27: 5x/week | N27: 6x/week | P27: Extra Scheduled Pickup | R27: On-Call Service Monthly Charge | T27: On-Call Service Pickup Charge | V27: =((axb)+(cxd)+(exf)+(gxh)+(ixj)+(kxl)+(mxn)+(oxp)+(qxr))x12
D28: (a) | E28: (b) | F28: (c) | G28: (d) | H28: (e) | I28: (f) | J28: (g) | K28: (h) | L28: (i) | M28: (j) | N28: (k) | O28: (l) | P28: (m) | Q28: (n) | R28: (o) | S28: (p) | T28: (q) | U28: (r)
D29: Monthly Rate | E29: Est. Billing Units/ Month | F29: Monthly Rate | G29: Est. Billing Units/ Month | H29: Monthly Rate | I29: Est. Billing Units/ Month | J29: Monthly Rate | K29: Est. Billing Units/ Month | L29: Monthly Rate | M29: Est. Billing Units/ Month | N29: Monthly Rate | O29: Est. Billing Units/ Month | P29: Rate per Pickup | Q29: Est. Pickups/ Month | R29: Monthly Rate | S29: Est. Billing Units/ Month | T29: Monthly Rate | U29: Est. Pickups/ Month | V29: Annual Price Proposal
B30: =B23+1 -> 56 | C30: 1 cubic yard | E30: 5 | G30: 3 | I30: 1 | K30: 1 | M30: 1 | O30: 1 | Q30: 1 | S30: 1 | U30: 1 | V30: =((D30*E30)+(F30*G30)+(H30*I30)+(J30*K30)+(L30*M30)+(N30*O30)+(P30*Q30)+(R30*S30)+(T30*U30))*12 -> $0.00
B31: =B30+1 -> 57 | C31: 2 cubic yard | E31: =354+67 -> 421 | G31: 84 | I31: 24 | K31: 7 | M31: 2 | O31: 3 | Q31: 1 | S31: 1 | U31: 1 | V31: =((D31*E31)+(F31*G31)+(H31*I31)+(J31*K31)+(L31*M31)+(N31*O31)+(P31*Q31)+(R31*S31)+(T31*U31))*12 -> $0.00
B32: =B31+1 -> 58 | C32: 3 cubic yard | E32: 41 | G32: 16 | I32: 3 | K32: 3 | M32: 1 | O32: 1 | Q32: 1 | S32: 1 | U32: 1 | V32: $0.00
B33: 59 | C33: 4 cubic yard | E33: 282 | G33: 105 | I33: 42 | K33: 10 | M33: 8 | O33: 4 | Q33: 1 | S33: 1 | U33: 1 | V33: $0.00
B34: 60 | C34: 6 cubic yard | E34: 102 | G34: 54 | I34: 14 | K34: 9 | M34: 2 | O34: 1 | Q34: 1 | S34: 1 | U34: 1 | V34: $0.00
B35: 61 | C35: 8 cubic yard | E35: 89 | G35: 80 | I35: 65 | K35: 17 | M35: 8 | O35: 10 | Q35: 1 | S35: 1 | U35: 1 | V35: $0.00
C36: Customer-Owned Containers
B37: =B35+1 -> 62 | C37: 1 cubic yard | E37: 1 | G37: 1 | I37: 1 | K37: 1 | M37: 1 | O37: 1 | Q37: 1 | S37: 1 | U37: 1 | V37: $0.00
B38: =B37+1 -> 63 | C38: 2 cubic yard | E38: 1 | G38: 1 | I38: 1 | K38: 1 | M38: 1 | O38: 1 | Q38: 1 | S38: 1 | U38: 1 | V38: $0.00
B39: =B38+1 -> 64 | C39: 3 cubic yard | E39: 1 | G39: 1 | I39: 1 | K39: 1 | M39: 1 | O39: 1 | Q39: 1 | S39: 1 | U39: 1 | V39: $0.00
B40: 65 | C40: 4 cubic yard | E40: 1 | G40: 1 | I40: 1 | K40: 1 | M40: 1 | O40: 1 | Q40: 1 | S40: 1 | U40: 1 | V40: $0.00
B41: 66 | C41: 6 cubic yard | E41: 1 | G41: 1 | I41: 1 | K41: 1 | M41: 1 | O41: 1 | Q41: 1 | S41: 1 | U41: 1 | V41: $0.00
B42: 67 | C42: 8 cubic yard | E42: 1 | G42: 1 | I42: 1 | K42: 1 | M42: 1 | O42: 1 | Q42: 1 | S42: 1 | U42: 1 | V42: $0.00
B43: 68 | C43: Estimated Annualized Cost for Commercial Collection in Non-Compaction Containers [Sum of Lines 56-67] | V43: =SUM(V30:V42) -> $0.00
B45: Solid Waste Franchise Area COMPACTION CONTAINERS
B46: Line | C46: Franchisee-Owned Containers | D46: 1x/week | F46: 2x/week | H46: 3x/week | J46: 4x/week | L46: 5x/week | N46: 6x/week | P46: Extra Scheduled Pickup | R46: On-Call Service Monthly Charge | T46: On-Call Service Pickup Charge | V46: =((axb)+(cxd)+(exf)+(gxh)+(ixj)+(kxl)+(mxn)+(oxp)+(qxr))x12
D47: (a) | E47: (b) | F47: (c) | G47: (d) | H47: (e) | I47: (f) | J47: (g) | K47: (h) | L47: (i) | M47: (j) | N47: (k) | O47: (l) | P47: (m) | Q47: (n) | R47: (o) | S47: (p) | T47: (q) | U47: (r)
D48: Monthly Rate | E48: Est. Billing Units/ Month | F48: Monthly Rate | G48: Est. Billing Units/ Month | H48: Monthly Rate | I48: Est. Billing Units/ Month | J48: Monthly Rate | K48: Est. Billing Units/ Month | L48: Monthly Rate | M48: Est. Billing Units/ Month | N48: Monthly Rate | O48: Est. Billing Units/ Month | P48: Rate per Pickup | Q48: Est. Pickups/ Month | R48: Monthly Rate | S48: Est. Billing Units/ Month | T48: Monthly Rate | U48: Est. Pickups/ Month | V48: Annual Price Proposal
B49: =B43+1 -> 69 | C49: 1 cubic yard | E49: 1 | G49: 1 | I49: 1 | K49: 1 | M49: 1 | O49: 1 | Q49: 1 | S49: 1 | U49: 1 | V49: =((D49*E49)+(F49*G49)+(H49*I49)+(J49*K49)+(L49*M49)+(N49*O49)+(P49*Q49)+(R49*S49)+(T49*U49))*12 -> $0.00
B50: =B49+1 -> 70 | C50: 2 cubic yard | E50: 1 | G50: 1 | I50: 1 | K50: 1 | M50: 1 | O50: 1 | Q50: 1 | S50: 1 | U50: 1 | V50: =((D50*E50)+(F50*G50)+(H50*I50)+(J50*K50)+(L50*M50)+(N50*O50)+(P50*Q50)+(R50*S50)+(T50*U50))*12 -> $0.00
B51: =B50+1 -> 71 | C51: 3 cubic yard | E51: 1 | G51: 1 | I51: 1 | K51: 1 | M51: 1 | O51: 1 | Q51: 1 | S51: 1 | U51: 1 | V51: $0.00
B52: 72 | C52: 4 cubic yard | E52: 1 | G52: 1 | I52: 1 | K52: 1 | M52: 1 | O52: 1 | Q52: 1 | S52: 1 | U52: 1 | V52: $0.00
B53: 73 | C53: 6 cubic yard | E53: 1 | G53: 1 | I53: 2 | K53: 1 | M53: 1 | O53: 1 | Q53: 1 | S53: 1 | U53: 1 | V53: $0.00
B54: 74 | C54: 8 cubic yard | E54: 1 | G54: 1 | I54: 1 | K54: 1 | M54: 1 | O54: 1 | Q54: 1 | S54: 1 | U54: 1 | V54: $0.00
C55: Customer-Owned Containers
B56: =B54+1 -> 75 | C56: 1 cubic yard | E56: 1 | G56: 1 | I56: 1 | K56: 1 | M56: 1 | O56: 1 | Q56: 1 | S56: 1 | U56: 1 | V56: =((D56*E56)+(F56*G56)+(H56*I56)+(J56*K56)+(L56*M56)+(N56*O56)+(P56*Q56)+(R56*S56)+(T56*U56))*12 -> $0.00
B57: =B56+1 -> 76 | C57: 2 cubic yard | E57: 1 | G57: 1 | I57: 1 | K57: 1 | M57: 1 | O57: 1 | Q57: 1 | S57: 1 | U57: 1 | V57: $0.00
B58: =B57+1 -> 77 | C58: 3 cubic yard | E58: 1 | G58: 1 | I58: 1 | K58: 1 | M58: 1 | O58: 1 | Q58: 1 | S58: 1 | U58: 1 | V58: $0.00
B59: 78 | C59: 4 cubic yard | E59: 1 | G59: 1 | I59: 1 | K59: 1 | M59: 1 | O59: 1 | Q59: 1 | S59: 1 | U59: 1 | V59: $0.00
B60: 79 | C60: 6 cubic yard | E60: 1 | G60: 1 | I60: 1 | K60: 1 | M60: 1 | O60: 1 | Q60: 1 | S60: 1 | U60: 1 | V60: $0.00
B61: 80 | C61: 8 cubic yard | E61: 1 | G61: 1 | I61: 1 | K61: 1 | M61: 1 | O61: 1 | Q61: 1 | S61: 1 | U61: 1 | V61: $0.00
B62: 81 | C62: Estimated Annualized Cost for Commercial Collection in Compaction Containers [Sum of Lines 69-80] | V62: =SUM(V49:V61) -> $0.00

Sheet 4
B1: Addenda 9 - PRICE FORM - PAGE 4 of 5 Note: Addendum 9 builds upon previous Price Form Addenda and adds Multi-family Universal Service pricing to Page 2, separates Multi-family Subscription Service and Commercial Compaction Containers on Page 3, and adds Cart Service Pricing on Page 4.
B2: PROPOSER'S NAME:
B3: Commercial Collection Service - Roll-Offs
B4: Please note the following: 1. Proposer must fill in all proposed pricing (yellow highlighted cells) to be considered responsive. All other cells are locked. 2. Franchisee shall provide Commercial Collection Service for Roll-offs as arranged between the Commercial Customer and Franchisee as defined in RFP Section 1, Scope of Services and Attachment B Sample Agreement. 3. All unit prices must be rounded to the nearest cent. 4. Unit numbers provided are for evaluation purposes only. SWDD makes no guarantee as to the number of units to be serviced. 5. For proposal evaluations, all services have a minimum of one unit listed, even those not currently in use. 6. Prices are for collection service only. Disposal rates or Drop-off Charges to Commercial Customers for Roll-off containers shall be based upon scale tickets and shall not be a component to the Commercial Base Rate provided for Roll-off containers. 7. Where applicable, cubic yard has been abbreviated to cu yd.
B5: Solid Waste Franchise Area ROLL-OFFS (Commercial and Multi-Family Serviced as Commercial)
B6: Line | C6: Container Size | D6: (a) | E6: (b) | F6: (c) | G6: (d) | H6: = ((axb) + (cxd)) x 12 months
D7: Monthly Container & Maintenance Fee | E7: Est. Billing Units/Month | F7: Fee per Pull | G7: Est. Pulls/ Month | H7: Annual Price Proposal
B8: ='3'!B62+1 -> 82 | C8: Non-Compaction: 15 cu yd | E8: 1 | G8: 1 | H8: =((D8*E8)+(F8*G8))*12 -> $0.00
B9: =B8+1 -> 83 | C9: Non-Compaction: 20 cu yd | E9: 1 | G9: 1 | H9: =((D9*E9)+(F9*G9))*12 -> $0.00
B10: =B9+1 -> 84 | C10: Non-Compaction: 25 cu yd | E10: 1 | G10: 1 | H10: $0.00
B11: 85 | C11: Non-Compaction: 30 cu yd | E11: 1 | G11: 1 | H11: $0.00
B12: 86 | C12: Non-Compaction: 34 cu yd | E12: 1 | G12: 1 | H12: $0.00
B13: 87 | C13: Non-Compaction: 35 cu yd | E13: 1 | G13: 1 | H13: $0.00
B14: 88 | C14: Non-Compaction: 40 cu yd | E14: 1 | G14: 1 | H14: $0.00
B15: 89 | C15: Compaction: 15 cu yd | E15: 2 | G15: 1 | H15: $0.00
B16: 90 | C16: Compaction: 20 cu yd | E16: 1 | G16: 1 | H16: $0.00
B17: 91 | C17: Compaction: 25 cu yd | E17: 1 | G17: 1 | H17: $0.00
B18: 92 | C18: Compaction: 30 cu yd | E18: 16 | G18: 1 | H18: =((D18*E18)+(F18*G18))*12 -> $0.00
B19: 93 | C19: Compaction: 34 cu yd | E19: 10 | G19: 1 | H19: =((D19*E19)+(F19*G19))*12 -> $0.00
B20: 94 | C20: Compaction: 35 cu yd | E20: 3 | G20: 1 | H20: =((D20*E20)+(F20*G20))*12 -> $0.00
B21: 95 | C21: Compaction: 40 cu yd | E21: 7 | G21: 1 | H21: =((D21*E21)+(F21*G21))*12 -> $0.00
B22: =B21+1 -> 96 | C22: Estimated Annualized Cost for Commercial Collection in Roll-Offs (Sum of Lines 82 - 95) | H22: =SUM(H8:H21) -> $0.00
B24: Commercial Supplemental Collection Services
B25: Please note the following: 1. Proposer must fill in all proposed pricing (yellow highlighted cells) to be considered responsive. All other cells are locked. 2. Franchisee shall provide Commercial Supplemental Collection Service as arranged between the Commercial Customer and Franchisee as defined in RFP Section 1, Scope of Services and Attachment B Sample Agreement. 3. All unit prices must be rounded to the nearest cent. 4. Due to the unknown variable of estimated units serviced per month, each type of service has a general multiplier of one (1) utilized to calculate the estimated annualized cost.
B26: Line | C26: Type of Service | H26: Solid Waste Franchise Area
H27: Service Rate / Occurrence
B28: =B22+1 -> 97 | C28: Rolling out container(s) and returning to original location - Fee per event
B29: =B28+1 -> 98 | C29: Unlocking and locking containers - Fee per event
B30: =B29+1 -> 99 | C30: Moving customer-owned container location per Customer request - Fee per event
B31: =B30+1 -> 100 | C31: Opening and closing doors or gates - Fee per event
H32: One-time fee
B33: =B31+1 -> 101 | C33: Locks for containers - One-time fee
B34: =B33+1 -> 102 | C34: Estimated Annualized Cost for Commercial Supplemental Collection Services (((Line 97 x 1)+(Line 98 x 1)+(Line 99 x 1)+(Line 100 x 1)+(Line 101 x 1)) x 12 months) | H34: =(H28+H29+H30+H31+H33)*12 -> $0.00
B36: Commercial Cart Service
B37: Please note the following: 1. Proposer must fill in all proposed pricing (yellow highlighted cells) to be considered responsive. All other cells are locked. 2. Franchisee shall provide Commercial Cart Service as arranged between the Commercial Customer and Franchisee as defined in RFP Section 1, Scope of Services and Attachment B Sample Agreement. 3. All unit prices must be rounded to the nearest cent. 4. Unit prices are provided for evaluation purposes only. SWDD makes no guarantee as to the number of units to be serviced.
B38: Line | C38: Type of Service | G38: Est. Pickups/ Week (a) | H38: Fee/Pickup (b)
B39: =B34+1 -> 103 | C39: Commercial Cart Service in Franchisee provided 96 gal Roll Cart | G39: 80
B40: =B39+1 -> 104 | C40: Estimated Annualized Cost for Commercial Cart Services ((Line 103a x Line 103b) x 52.143 weeks/year) | H40: =(H39*G39)*52.143 -> $0.00

Sheet 5
C1: Addendum 9 - PRICE FORM - PAGE 5 of 5 Note: Addendum 9 builds upon previous Price Form Addenda and adds Multi-family Universal Service pricing to Page 2, separates Multi-family Subscription Service and Commercial Compaction Containers on Page 3, and adds Cart Service Pricing on Page 4.
B2: PROPOSER'S NAME:
B3: Total Proposed Annual Contract Value (ACV)
C4: Please note annualized summations have been provided by level of service option and a total of all services bid.
D5: SERVICE OPTION #1 | E5: SERVICE OPTION #2 | F5: SERVICE OPTION #3 | G5: SERVICE OPTION #4
B6: Line | C6: Service | D6: Est. Annualized Cost (a) | E6: Est. Annualized Cost (b) | F6: Est. Annualized Cost (c) | G6: Est. Annualized Cost (d)
C7: Residential Collection Service
B8: ='4'!B40+1 -> 105 | C8: Residential Collection Service (All Options) + (Multi-family Subscription Service (Options #1 and #3 Only) or Multi-family Universal Service (Options #2 and #4 Only)) | D8: ='1'!D13+'3'!V23 -> $0.00 | E8: ='1'!D21+'2'!D25 -> $0.00 | F8: ='1'!D29+'3'!V23 -> $0.00 | G8: ='1'!D37+'2'!D25 -> $0.00
C9: Commercial Collection Service
B10: =B8+1 -> 106 | C10: All Container Types and Services | D10: ='3'!V43+'3'!V62+'4'!H22+'4'!H40 -> $0.00 | E10: ='3'!V43+'3'!V62+'4'!H22+'4'!H40 -> $0.00 | F10: ='3'!V43+'3'!V62+'4'!H22+'4'!H40 -> $0.00 | G10: ='3'!V43+'3'!V62+'4'!H22+'4'!H40 -> $0.00
C11: Supplemental Collection Services
B12: =B10+1 -> 107 | C12: Residential Supplemental Collection Services | D12: ='2'!D16 -> $0.00 | E12: ='2'!$D$16 -> $0.00 | F12: ='2'!$D$16 -> $0.00 | G12: ='2'!$D$16 -> $0.00
B13: =B12+1 -> 108 | C13: Government Buildings and Facilities Recycling | D13: ='2'!H12 -> $0.00 | E13: ='2'!H12 -> $0.00 | F13: ='2'!H12 -> $0.00 | G13: ='2'!H12 -> $0.00
B14: =B13+1 -> 109 | C14: Commercial Supplemental Collection Services | D14: ='4'!$H$34 -> $0.00 | E14: ='4'!$H$34 -> $0.00 | F14: ='4'!$H$34 -> $0.00 | G14: ='4'!$H$34 -> $0.00
B15: =B14+1 -> 110 | C15: Total Proposed Annual Contract Value (By Option) [Sum of Lines 105 - 109] | D15: =D8+D10+D12+D13+D14 -> $0.00 | E15: =E8+E10+E12+E13+E14 -> $0.00 | F15: =F8+F10+F12+F13+F14 -> $0.00 | G15: =G8+G10+G12+G13+G14 -> $0.00
B16: 111 | C16: Total Proposed RFP Package [Line 110a + Line 110b + Line 110c + Line 110d] | D16: =+D15+E15+F15+G15 -> $0.00
